[Event "WCCC G10 2019"]
[Site "Weifang"]
[Date "2019.08.21"]
[Round "1.1"]
[White "Li, Rachael"]
[Black "Oyundelger Ochgerel"]
[Result "1-0"]
[ECO "B98"]
[WhiteElo "1911"]
[BlackElo "1128"]
[Annotator "NA"]
[PlyCount "35"]
[EventDate "2019.08.21"]
[EventType "swiss"]
[EventCountry "CHN"]
[SourceTitle "playchess.com"]
[Source "ChessBase"]
[SourceQuality "1"]
[TimeControl "40/5400+30:1800+30"]

1. e4 {[%emt 0:00:00]} c5 {[%emt 0:00:00]} 2. Nf3 {[%emt 0:00:00]} d6 {[%emt 0:00:00]} 3. d4 {[%emt 0:00:00]} cxd4 {[%emt 0:00:00]} 4. Nxd4 {[%emt 0:00:00]} Nf6 {[%emt 0:00:08]} 5. Nc3 {[%emt 0:00:00]} a6 {[%emt 0:00:09]} 6. Bg5 {[%emt 0:00:00]} e6 {[%emt 0:00:11]} 7. f4 {[%emt 0:00:01]} Be7 {[%emt 0:00:07]} 8. Qf3 {[%emt 0:00:04]} Qc7 {[%emt 0:00:23]} 9. O-O-O {[%emt 0:00:13]} b5 {[%emt 0:01:12]} 10. a3 {[%emt 0:00:51]} h5 {[%emt 0:24:44]} 11. Bxf6 {[%emt 0:06:54]} Bxf6 {[%emt 0:00:12]} 12. Bxb5+ {[%emt 0:08:21]} Ke7 {[%emt 0:33:38]} 13. Nf5+ {[%emt 0:08:23]} exf5 {[%emt 0:13:58]} 14. Nd5+ {[%emt 0:00:06]} Kd8 {[%emt 0:01:11]} 15. Nxc7 {[%emt 0:00:06]} Kxc7 {[%emt 0:00:11]} 16. e5 {[%emt 0:00:20]} Bb7 $18 {[%emt 0:01:41]} 17. Qc3+ {[%emt 0:00:57]} Kb6 {[%emt 0:00:15]} 18. Rxd6+ {[%emt 0:00:08]} 1-0

[Event "WCCC G10 2019"]
[Site "Weifang"]
[Date "2019.08.21"]
[Round "1.2"]
[White "Pazylbekova, Nurzhamal"]
[Black "Lee, Alice"]
[Result "0-1"]
[ECO "B40"]
[WhiteElo "1123"]
[BlackElo "1822"]
[Annotator "NA"]
[PlyCount "74"]
[EventDate "2019.08.21"]
[EventType "swiss"]
[EventCountry "CHN"]
[SourceTitle "playchess.com"]
[Source "ChessBase"]
[SourceQuality "1"]
[TimeControl "40/5400+30:1800+30"]

1. e4 {[%emt 0:00:00]} c5 {[%emt 0:00:00]} 2. Nf3 {[%emt 0:00:00]} e6 {[%emt 0:00:12]} 3. Nc3 {[%emt 0:00:27]} Nc6 {[%emt 0:00:41]} 4. d3 {[%emt 0:01:31]} d5 {[%emt 0:00:52]} 5. Bf4 {[%emt 0:16:03]} Nf6 {[%emt 0:04:10]} 6. Qc1 {[%emt 0:08:47]} Be7 {[%emt 0:02:17]} 7. Be2 {[%emt 0:04:54]} Nd4 {[%emt 0:04:26]} 8. Bd1 {[%emt 0:08:42]} O-O {[%emt 0:08:19]} 9. O-O {[%emt 0:01:00]} a6 {[%emt 0:02:46]} 10. Re1 {[%emt 0:12:10]} dxe4 {[%emt 0:05:03]} 11. Nxe4 {[%emt 0:03:36]} Nd5 {[%emt 0:03:54]} 12. Bd2 {[%emt 0:06:36]} Nc6 {[%emt 0:03:40]} 13. Nc3 {[%emt 0:04:07]} b5 {[%emt 0:04:45]} 14. Nxd5 {[%emt 0:01:25]} exd5 {[%emt 0:01:24]} 15. Ne5 {[%emt 0:03:52]} Bb7 {[%emt 0:02:17]} 16. Nxc6 {[%emt 0:00:22]} Bxc6 {[%emt 0:00:11]} 17. Bf3 {[%emt 0:01:24]} Bf6 {[%emt 0:01:28]} 18. Bf4 {[%emt 0:03:49]} Qd7 {[%emt 0:03:50]} 19. Be5 {[%emt 0:01:56]} Be7 {[%emt 0:01:22]} 20. Qd2 {[%emt 0:03:10]} f6 {[%emt 0:02:09]} 21. Bg3 {[%emt 0:00:50]} Rae8 {[%emt 0:01:16]} 22. h3 {[%emt 0:02:29]} f5 {[%emt 0:02:18]} 23. Bf4 $11 {[%emt 0:02:01]} Bb7 {[%emt 0:04:43]} 24. Rac1 {[%emt 0:01:47]} Bf6 {[%emt 0:01:46]} 25. Rb1 {[%emt 0:02:06]} Rxe1+ {[%emt 0:02:27]} 26. Qxe1 {[%emt 0:00:12]} g5 {[%emt 0:01:25]} 27. Bd2 {[%emt 0:01:23]} g4 {[%emt 0:02:50]} 28. hxg4 {[%emt 0:00:24]} fxg4 {[%emt 0:00:22]} 29. Be2 {[%emt 0:00:45]} Bh4 {[%emt 0:12:53]} 30. g3 {[%emt 0:00:56]} d4 {[%emt 0:02:47]} 31. Kh2 {[%emt 0:01:15]} Qd5 {[%emt 0:02:16]} 32. Qg1 {[%emt 0:05:10]} Bg5 {[%emt 0:04:43]} 33. Be1 {[%emt 0:00:00]} Rf6 {[%emt 0:00:57]} 34. Bxg4 {[%emt 0:00:00]} Rh6+ {[%emt 0:00:29]} 35. Bh3 {[%emt 0:00:00]} Qf3 {[%emt 0:01:07]} 36. Ba5 {[%emt 0:00:00]} Rxh3+ {[%emt 0:00:56]} 37. Kxh3 {[%emt 0:00:08]} Qh5# {[%emt 0:00:21]} 0-1

[Event "WCCC G10 2019"]
[Site "Weifang"]
[Date "2019.08.21"]
[Round "1.3"]
[White "Shukhman, Anna"]
[Black "Karunasena, H G M K Saheli Onaya"]
[Result "1-0"]
[ECO "C68"]
[WhiteElo "1806"]
[BlackElo "1116"]
[Annotator "NA"]
[PlyCount "61"]
[EventDate "2019.08.21"]
[EventType "swiss"]
[EventCountry "CHN"]
[SourceTitle "playchess.com"]
[Source "ChessBase"]
[SourceQuality "1"]
[TimeControl "40/5400+30:1800+30"]

1. e4 {[%emt 0:00:00]} e5 {[%emt 0:00:00]} 2. Nf3 {[%emt 0:00:00]} Nc6 {[%emt 0:00:00]} 3. Bb5 {[%emt 0:00:00]} a6 {[%emt 0:00:00]} 4. Bxc6 {[%emt 0:00:00]} dxc6 {[%emt 0:00:00]} 5. O-O {[%emt 0:00:00]} Bd6 {[%emt 0:04:08]} 6. d4 {[%emt 0:00:04]} f6 {[%emt 0:03:11]} 7. dxe5 {[%emt 0:00:07]} fxe5 {[%emt 0:00:17]} 8. Nxe5 {[%emt 0:00:08]} Qe7 {[%emt 0:04:24] C68: Ruy Lopez: Exchange Variation, sidelines} (8... Ne7 9. Nc4 Be6 10. Nxd6+ Qxd6 11. Qxd6 cxd6 12. Nc3 O-O 13. Bg5 Nc8 14. Rad1 b5 15. Rd2 Ra7 16. Rfd1 {1-0 (33) Mazi,L (2379)-Brinovec,D (2226) Portoroz 2016}) 9. Nc4 {[%emt 0:03:04]} Bc5 $146 {[%emt 0:07:14]} ({Predecessor:} 9... Qxe4 10. Re1 Qxe1+ 11. Qxe1+ Kd8 12. Bg5+ Nf6 13. Bxf6+ gxf6 14. Nxd6 cxd6 15. Nc3 Re8 16. Qd2 Kc7 17. Rd1 Re6 18. Qh6 Bd7 19. h3 Rae8 20. Qxh7 R8e7 21. Qh4 Rf7 22. Qb4 Rfe7 23. f3 {1-0 (23) Motycka,F-Beil,M Chrudim 1993}) 10. Bf4 {[%emt 0:02:14]} Nf6 {[%emt 0:17:05]} 11. Bg5 {[%emt 0:01:00]} h6 {[%emt 0:03:25]} 12. Bxf6 {[%emt 0:00:34]} Qxf6 {[%emt 0:02:12]} 13. Qh5+ {[%emt 0:00:14]} Qf7 {[%emt 0:06:58]} 14. Qxc5 {[%emt 0:00:08]} Qe6 {[%emt 0:01:27]} 15. Nc3 {[%emt 0:00:44]} b6 {[%emt 0:03:07]} 16. Qh5+ {[%emt 0:00:46]} g6 {[%emt 0:02:21]} 17. Qe2 {[%emt 0:00:14]} Bd7 {[%emt 0:01:26]} 18. Rad1 {[%emt 0:00:33]} O-O-O {[%emt 0:00:21]} 19. Nxb6+ {[%emt 0:01:13]} Kb7 {[%emt 0:01:08]} 20. Nba4 {[%emt 0:00:28]} Qe7 {[%emt 0:01:20]} 21. b4 {[%emt 0:01:08]} Ra8 {[%emt 0:01:22]} 22. Nc5+ {[%emt 0:00:11]} Kc8 {[%emt 0:01:04]} 23. Rxd7 {[%emt 0:00:22]} Qf6 {[%emt 0:02:42]} 24. Rfd1 {[%emt 0:01:21]} Qxc3 {[%emt 0:02:11]} 25. Rd8+ {[%emt 0:01:40]} Rxd8 {[%emt 0:00:14]} 26. Qg4+ {[%emt 0:00:09]} Kb8 {[%emt 0:01:53]} 27. Rxd8+ {[%emt 0:00:07]} Ka7 {[%emt 0:02:13]} 28. Rxa8+ {[%emt 0:00:08]} Kb6 {[%emt 0:02:14]} 29. Rb8+ {[%emt 0:00:21]} Ka7 {[%emt 0:03:31]} 30. Rb7+ {[%emt 0:00:10]} Ka8 {[%emt 0:01:26]} 31. Qc8# {[%emt 0:00:07]} 1-0

[Event "WCCC G10 2019"]
[Site "Weifang"]
[Date "2019.08.21"]
[Round "1.4"]
[White "Tynyshtyk, Diana"]
[Black "Zhou, Yafei"]
[Result "0-1"]
[ECO "C02"]
[WhiteElo "1112"]
[BlackElo "1757"]
[Annotator "NA"]
[PlyCount "88"]
[EventDate "2019.08.21"]
[EventType "swiss"]
[EventCountry "CHN"]
[SourceTitle "playchess.com"]
[Source "ChessBase"]
[SourceQuality "1"]
[TimeControl "40/5400+30:1800+30"]

1. e4 {[%emt 0:00:00]} e6 {[%emt 0:00:00]} 2. d4 {[%emt 0:00:00]} d5 {[%emt 0:00:00]} 3. e5 {[%emt 0:00:00]} c5 {[%emt 0:00:00]} 4. c3 {[%emt 0:00:00]} Nc6 {[%emt 0:00:00]} 5. Nf3 {[%emt 0:00:02]} Qb6 {[%emt 0:00:00]} 6. a3 {[%emt 0:00:30]} cxd4 {[%emt 0:00:00]} 7. cxd4 {[%emt 0:00:08]} Nge7 {[%emt 0:00:00]} 8. b4 {[%emt 0:01:51]} Nf5 {[%emt 0:00:01]} 9. Bb2 {[%emt 0:03:32]} Be7 {[%emt 0:00:07]} 10. Be2 {[%emt 0:06:21]} Bd7 {[%emt 0:00:04]} 11. O-O {[%emt 0:01:32]} Rc8 {[%emt 0:00:06]} 12. g4 {[%emt 0:02:27]} Nh4 {[%emt 0:07:20]} 13. Nxh4 {[%emt 0:06:30]} Bxh4 {[%emt 0:00:07]} 14. f4 {[%emt 0:06:29]} f6 {[%emt 0:05:31]} 15. b5 {[%emt 0:07:15]} Na5 {[%emt 0:02:51]} 16. Nc3 {[%emt 0:01:18]} Nc4 {[%emt 0:02:45]} 17. Bc1 {[%emt 0:16:23]} O-O {[%emt 0:05:19]} 18. g5 {[%emt 0:05:07]} fxe5 {[%emt 0:01:25]} 19. fxe5 {[%emt 0:18:58]} Rxf1+ {[%emt 0:00:31]} 20. Bxf1 {[%emt 0:05:06]} Nxe5 {[%emt 0:02:13]} 21. Na4 {[%emt 0:05:16]} Qxd4+ {[%emt 0:03:47]} 22. Qxd4 {[%emt 0:00:29]} Nf3+ {[%emt 0:00:04]} 23. Kg2 {[%emt 0:00:20]} Nxd4 {[%emt 0:00:05]} 24. Bf4 {[%emt 0:06:35]} Bxb5 {[%emt 0:04:38]} 25. Bxb5 {[%emt 0:02:27]} Nxb5 {[%emt 0:00:05]} 26. Rf1 {[%emt 0:00:42]} Rc4 {[%emt 0:01:10]} 27. Kh3 {[%emt 0:01:22]} Rxa4 {[%emt 0:00:07]} 28. Kxh4 {[%emt 0:00:08]} e5 {[%emt 0:00:05]} 29. Rb1 {[%emt 0:00:21]} Rxf4+ {[%emt 0:00:10]} 30. Kg3 {[%emt 0:00:04]} a6 {[%emt 0:00:27]} 31. h4 {[%emt 0:00:16]} Ra4 {[%emt 0:00:09]} 32. Rc1 {[%emt 0:00:19]} Kf7 {[%emt 0:00:45]} 33. Rc5 {[%emt 0:00:16]} Ke6 {[%emt 0:00:18]} 34. Rc8 {[%emt 0:00:12]} Nd6 {[%emt 0:00:20]} 35. Rc7 {[%emt 0:00:17]} d4 {[%emt 0:00:13]} 36. Rxg7 {[%emt 0:00:08]} Nf5+ {[%emt 0:00:04]} 37. Kg4 {[%emt 0:00:10]} Nxg7 {[%emt 0:00:04]} 38. g6 {[%emt 0:00:49]} hxg6 {[%emt 0:00:07]} 39. Kg5 {[%emt 0:00:19]} d3 {[%emt 0:00:10]} 40. Kxg6 {[%emt 0:00:22]} d2 {[%emt 0:00:06]} 41. Kxg7 {[%emt 0:30:20]} d1=Q {[%emt 0:30:13]} 42. Kf8 {[%emt 0:00:30]} Qd8+ {[%emt 0:00:09]} 43. Kg7 {[%emt 0:00:05]} Rg4+ {[%emt 0:00:10]} 44. Kh6 {[%emt 0:00:31]} Qxh4# {[%emt 0:00:07]} 0-1

[Event "WCCC G10 2019"]
[Site "Weifang"]
[Date "2019.08.21"]
[Round "1.5"]
[White "Chen, Yining"]
[Black "Bryukhanova, Anna"]
[Result "1-0"]
[ECO "D16"]
[WhiteElo "1744"]
[BlackElo "1094"]
[Annotator "NA"]
[PlyCount "57"]
[EventDate "2019.08.21"]
[EventType "swiss"]
[EventCountry "CHN"]
[SourceTitle "playchess.com"]
[Source "ChessBase"]
[SourceQuality "1"]
[TimeControl "40/5400+30:1800+30"]

1. d4 {[%emt 0:00:00]} d5 {[%emt 0:00:00]} 2. c4 {[%emt 0:00:00]} c6 {[%emt 0:00:00]} 3. Nf3 {[%emt 0:00:00]} Nf6 {[%emt 0:00:05]} 4. Nc3 {[%emt 0:00:20]} dxc4 {[%emt 0:00:25]} 5. a4 {[%emt 0:00:40]} e6 {[%emt 0:00:24]} 6. e3 {[%emt 0:00:41]} c5 {[%emt 0:03:07]} 7. Bxc4 {[%emt 0:01:56]} Nc6 {[%emt 0:02:00]} 8. O-O {[%emt 0:02:57]} Be7 {[%emt 0:01:31]} 9. Qe2 {[%emt 0:01:55]} O-O {[%emt 0:00:52]} 10. Rd1 {[%emt 0:01:53]} Nb4 {[%emt 0:01:07]} 11. e4 {[%emt 0:02:26]} b6 {[%emt 0:06:13]} 12. dxc5 {[%emt 0:01:18]} Qc7 {[%emt 0:00:53]} 13. cxb6 {[%emt 0:00:44]} axb6 {[%emt 0:03:50]} 14. e5 {[%emt 0:09:20]} Nd7 {[%emt 0:04:57]} 15. Nb5 {[%emt 0:01:30]} Qc6 {[%emt 0:04:40]} 16. Bd2 {[%emt 0:03:45]} Rd8 {[%emt 0:11:43]} 17. Rac1 {[%emt 0:03:48]} Qb7 {[%emt 0:01:40]} 18. Bg5 {[%emt 0:03:33]} Bxg5 {[%emt 0:01:24]} 19. Nxg5 {[%emt 0:00:05]} Rxa4 {[%emt 0:38:37]} 20. Nxf7 {[%emt 0:01:37]} Rf8 {[%emt 0:04:49]} 21. Bxe6 {[%emt 0:00:48]} Rxf7 {[%emt 0:01:19]} 22. Bxf7+ {[%emt 0:00:05]} Kxf7 {[%emt 0:00:29]} 23. Nd6+ {[%emt 0:00:02]} Ke7 {[%emt 0:00:43]} 24. Nxb7 {[%emt 0:00:09]} Bxb7 {[%emt 0:00:36]} 25. Qb5 {[%emt 0:00:38]} Ra7 {[%emt 0:00:55]} 26. Rxd7+ {[%emt 0:00:28]} Kf8 {[%emt 0:00:15]} 27. Qxb4+ {[%emt 0:00:03]} Kg8 {[%emt 0:00:17]} 28. Qe7 {[%emt 0:00:16]} Kh8 {[%emt 0:00:29]} 29. Qxg7# {[%emt 0:00:06]} 1-0

[Event "WCCC G10 2019"]
[Site "Weifang"]
[Date "2019.08.21"]
[Round "1.6"]
[White "Maral Altankhuyag"]
[Black "Ning, Isabelle Yixuan"]
[Result "1/2-1/2"]
[ECO "B47"]
[WhiteElo "1078"]
[BlackElo "1701"]
[Annotator "NA"]
[PlyCount "117"]
[EventDate "2019.08.21"]
[EventType "swiss"]
[EventCountry "CHN"]
[SourceTitle "playchess.com"]
[Source "ChessBase"]
[SourceQuality "1"]
[TimeControl "40/5400+30:1800+30"]

1. e4 {[%emt 0:00:00]} c5 {[%emt 0:00:00]} 2. Nf3 {[%emt 0:00:00]} e6 {[%emt 0:00:00]} 3. d4 {[%emt 0:00:00]} cxd4 {[%emt 0:00:00]} 4. Nxd4 {[%emt 0:00:01]} a6 {[%emt 0:00:00]} 5. Nc3 {[%emt 0:00:14]} Qc7 {[%emt 0:00:07]} 6. Be2 {[%emt 0:00:31]} Nf6 {[%emt 0:00:40]} 7. O-O {[%emt 0:01:21]} Nc6 {[%emt 0:01:20]} 8. Kh1 {[%emt 0:01:14]} b5 {[%emt 0:03:15]} 9. a3 {[%emt 0:02:23]} Bb7 {[%emt 0:02:46]} 10. f4 {[%emt 0:01:27]} d6 {[%emt 0:02:17]} 11. Be3 {[%emt 0:03:25]} Be7 {[%emt 0:04:28]} 12. Qd2 {[%emt 0:05:35]} O-O {[%emt 0:02:32]} 13. Nb3 {[%emt 0:02:21]} Rfd8 {[%emt 0:09:32]} 14. Qe1 {[%emt 0:01:51]} e5 {[%emt 0:15:19]} 15. fxe5 {[%emt 0:02:22]} Nxe5 {[%emt 0:02:59]} 16. Bd3 {[%emt 0:02:38]} d5 {[%emt 0:06:54]} 17. exd5 {[%emt 0:04:33]} Nxd5 {[%emt 0:00:50]} 18. Nxd5 {[%emt 0:04:54]} Bxd5 {[%emt 0:00:59]} 19. Nd2 {[%emt 0:05:19]} Re8 {[%emt 0:08:27]} 20. Rc1 {[%emt 0:06:51]} Ng4 {[%emt 0:04:43]} 21. Bf4 {[%emt 0:00:51]} Bd6 {[%emt 0:04:48]} 22. Bxd6 {[%emt 0:02:20]} Qxd6 {[%emt 0:00:49]} 23. Qh4 {[%emt 0:01:26]} Nh6 {[%emt 0:03:32]} 24. Rf2 {[%emt 0:02:48]} Rad8 {[%emt 0:05:56]} 25. Rcf1 {[%emt 0:01:08]} Qe7 {[%emt 0:02:15]} 26. Qg3 {[%emt 0:02:01]} Qe5 {[%emt 0:01:49]} 27. Qh4 {[%emt 0:01:57]} Qxb2 {[%emt 0:01:17]} 28. Be4 {[%emt 0:06:55]} Qxa3 {[%emt 0:02:22]} 29. Bxd5 {[%emt 0:00:36]} Rxd5 {[%emt 0:00:15]} 30. Ne4 {[%emt 0:00:47]} Qe7 {[%emt 0:01:10]} 31. Nf6+ {[%emt 0:05:45]} Kh8 {[%emt 0:02:07]} 32. Qh3 {[%emt 0:00:46]} gxf6 {[%emt 0:01:50]} 33. Qxh6 {[%emt 0:00:07]} Rd6 {[%emt 0:01:03]} 34. Rf5 {[%emt 0:01:59]} Qe3 {[%emt 0:01:21]} 35. Qh4 {[%emt 0:02:03]} Qe4 {[%emt 0:01:02]} 36. Qh5 {[%emt 0:02:26]} Rd2 {[%emt 0:02:56]} 37. Qh3 {[%emt 0:00:55]} Rg8 {[%emt 0:02:54]} 38. Rxf6 {[%emt 0:03:03]} Rdxg2 {[%emt 0:01:07]} 39. R6f3 {[%emt 0:01:01]} Qg4 {[%emt 0:02:13]} 40. Qxg4 {[%emt 0:00:07]} R8xg4 {[%emt 0:00:34]} 41. Rxf7 {[%emt 0:30:41]} Rxc2 {[%emt 0:30:27]} 42. Ra7 {[%emt 0:00:06]} Kg8 {[%emt 0:00:00]} 43. Rd1 {[%emt 0:00:00]} Rc8 {[%emt 0:00:00]} 44. Rxa6 {[%emt 0:00:00]} b4 {[%emt 0:00:00]} 45. Rb6 {[%emt 0:00:00]} Rgc4 {[%emt 0:00:00]} 46. Kg2 {[%emt 0:00:00]} Rc2+ {[%emt 0:00:00]} 47. Kg3 {[%emt 0:00:00]} R8c3+ {[%emt 0:00:00]} 48. Kf4 {[%emt 0:00:00]} Rxh2 {[%emt 0:00:00]} 49. Rg1+ {[%emt 0:00:00]} Kf7 {[%emt 0:00:00]} 50. Rxb4 {[%emt 0:00:00]} Rh4+ {[%emt 0:00:00]} 51. Rg4 {[%emt 0:00:00]} Rch3 {[%emt 0:00:00]} 52. Rb7+ {[%emt 0:00:00]} Ke6 {[%emt 0:00:00]} 53. Rb6+ {[%emt 0:00:00]} Kd5 {[%emt 0:00:00]} 54. Rxh4 {[%emt 0:00:00]} Rxh4+ {[%emt 0:00:00]} 55. Kg5 {[%emt 0:00:00]} Re4 {[%emt 0:00:00]} 56. Rb7 {[%emt 0:00:00]} h6+ {[%emt 0:00:00]} 57. Kxh6 {[%emt 0:00:00]} Rg4 {[%emt 0:00:00]} 58. Re7 {[%emt 0:00:00]} Kd6 {[%emt 0:00:00]} 59. Re1 {[%emt 0:00:39]} 1/2-1/2

[Event "WCCC G10 2019"]
[Site "Weifang"]
[Date "2019.08.21"]
[Round "1.7"]
[White "Lin, Ze Jun"]
[Black "Budaeva, Victoria"]
[Result "0-1"]
[ECO "B06"]
[WhiteElo "1674"]
[BlackElo "1074"]
[Annotator "NA"]
[PlyCount "138"]
[EventDate "2019.08.21"]
[EventType "swiss"]
[EventCountry "CHN"]
[SourceTitle "playchess.com"]
[Source "ChessBase"]
[SourceQuality "1"]
[TimeControl "40/5400+30:1800+30"]

1. e4 {[%emt 0:00:00]} g6 {[%emt 0:00:00]} 2. d4 {[%emt 0:00:00]} Bg7 {[%emt 0:00:00]} 3. Nc3 {[%emt 0:00:00]} d6 {[%emt 0:00:00]} 4. f4 {[%emt 0:00:03]} c6 {[%emt 0:00:29]} 5. Nf3 {[%emt 0:00:09]} Bg4 {[%emt 0:00:19]} 6. Be3 {[%emt 0:00:46]} Nd7 {[%emt 0:00:41]} 7. h3 {[%emt 0:00:33]} Bxf3 {[%emt 0:00:09]} 8. Qxf3 {[%emt 0:00:25]} Qb6 {[%emt 0:00:12]} 9. O-O-O {[%emt 0:00:28]} a5 {[%emt 0:01:33]} 10. e5 {[%emt 0:01:49]} Nh6 {[%emt 0:01:21]} 11. g4 {[%emt 0:05:11]} Qc7 {[%emt 0:00:58]} 12. Bg2 {[%emt 0:02:50]} Rc8 {[%emt 0:01:18]} 13. exd6 {[%emt 0:05:51]} exd6 {[%emt 0:00:53]} 14. Qe4+ {[%emt 0:03:04]} Kd8 {[%emt 0:02:11]} 15. a4 {[%emt 0:01:55]} Re8 {[%emt 0:00:32]} 16. Qd3 {[%emt 0:01:33]} Nb6 {[%emt 0:03:36]} 17. Rhe1 {[%emt 0:05:10]} d5 {[%emt 0:01:51]} 18. b3 {[%emt 0:00:53]} Bf8 {[%emt 0:01:32]} 19. Kb2 {[%emt 0:00:51]} Qd6 {[%emt 0:01:09]} 20. Ra1 {[%emt 0:02:00]} f5 {[%emt 0:03:05]} 21. Bf3 {[%emt 0:05:40]} fxg4 {[%emt 0:05:00]} 22. hxg4 {[%emt 0:00:47]} Nd7 {[%emt 0:04:55]} 23. Qd2 {[%emt 0:01:21]} Nf7 {[%emt 0:01:13]} 24. Rh1 {[%emt 0:03:43]} Qe6 {[%emt 0:02:01]} 25. Bf2 {[%emt 0:02:18]} h6 {[%emt 0:01:36]} 26. Rhe1 {[%emt 0:03:51]} Qd6 {[%emt 0:00:41]} 27. Rxe8+ {[%emt 0:02:09]} Kxe8 {[%emt 0:00:05]} 28. Re1+ {[%emt 0:01:08]} Kd8 {[%emt 0:00:30]} 29. Nb1 {[%emt 0:00:51]} b6 {[%emt 0:01:22]} 30. Re3 {[%emt 0:03:04]} Kc7 {[%emt 0:01:47]} 31. Bg3 {[%emt 0:00:52]} g5 {[%emt 0:01:45]} 32. Qh2 {[%emt 0:00:44]} Kb7 {[%emt 0:00:41]} 33. fxg5 {[%emt 0:04:31]} Qg6 {[%emt 0:00:07]} 34. gxh6 {[%emt 0:02:29]} Nxh6 {[%emt 0:00:59]} 35. Qh5 {[%emt 0:01:40]} Qxh5 {[%emt 0:01:03]} 36. gxh5 {[%emt 0:00:58]} Nf5 {[%emt 0:00:02]} 37. Bf4 {[%emt 0:01:55]} Nxe3 {[%emt 0:00:47]} 38. Bxe3 {[%emt 0:00:24]} Nf6 {[%emt 0:00:30]} 39. Bf4 {[%emt 0:00:49]} Ng8 {[%emt 0:00:46]} 40. Nc3 {[%emt 0:01:52]} Bg7 {[%emt 0:00:13]} 41. Ne2 {[%emt 0:30:57]} Rf8 {[%emt 0:30:20]} 42. Bg4 {[%emt 0:02:41]} Bxd4+ {[%emt 0:00:20]} 43. c3 {[%emt 0:00:38]} Bg7 {[%emt 0:00:25]} 44. Bd2 {[%emt 0:01:12]} Bh6 {[%emt 0:00:36]} 45. Be1 {[%emt 0:02:26]} Nf6 {[%emt 0:00:53]} 46. Bf3 {[%emt 0:00:44]} Ne4 {[%emt 0:00:56]} 47. Bg4 {[%emt 0:00:50]} Rg8 {[%emt 0:02:36]} 48. Bf3 {[%emt 0:00:40]} Rf8 {[%emt 0:00:40]} 49. Bg4 {[%emt 0:01:00]} Bg7 {[%emt 0:00:49]} 50. Nd4 {[%emt 0:01:29]} Bxd4 {[%emt 0:00:37]} 51. cxd4 {[%emt 0:00:40]} Rh8 {[%emt 0:00:38]} 52. Bh4 {[%emt 0:00:49]} b5 {[%emt 0:01:26]} 53. axb5 {[%emt 0:00:26]} cxb5 {[%emt 0:00:19]} 54. Kc2 {[%emt 0:02:35]} Kc6 {[%emt 0:01:03]} 55. Be1 {[%emt 0:00:52]} Nf6 {[%emt 0:00:15]} 56. Bf3 {[%emt 0:00:37]} Nxh5 {[%emt 0:00:08]} 57. Bxa5 {[%emt 0:00:19]} Nf6 {[%emt 0:00:54]} 58. Bb4 {[%emt 0:01:07]} Rh2+ {[%emt 0:00:25]} 59. Kc1 {[%emt 0:00:20]} Ne4 {[%emt 0:00:25]} 60. Bd1 {[%emt 0:03:02]} Kd7 {[%emt 0:01:45]} 61. Bg4+ {[%emt 0:01:10]} Kc6 {[%emt 0:00:33]} 62. Bd1 {[%emt 0:00:14]} Nf2 {[%emt 0:00:57]} 63. Bc2 {[%emt 0:01:10]} Rh4 {[%emt 0:01:13]} 64. Bc5 {[%emt 0:01:06]} Rh1+ {[%emt 0:01:05]} 65. Kd2 {[%emt 0:00:26]} Ne4+ {[%emt 0:00:28]} 66. Bxe4 {[%emt 0:00:50]} dxe4 {[%emt 0:00:04]} 67. b4 {[%emt 0:01:58]} Kd5 {[%emt 0:00:11]} 68. Ba7 {[%emt 0:01:12]} Rh3 {[%emt 0:00:14]} 69. Bc5 {[%emt 0:00:39]} Rd3+ {[%emt 0:01:01]} 0-1

[Event "WCCC G10 2019"]
[Site "Weifang"]
[Date "2019.08.21"]
[Round "1.8"]
[White "Khulugurova, Amaliia"]
[Black "Mou, Iris"]
[Result "0-1"]
[ECO "D02"]
[WhiteElo "1066"]
[BlackElo "1669"]
[Annotator "NA"]
[PlyCount "68"]
[EventDate "2019.08.21"]
[EventType "swiss"]
[EventCountry "CHN"]
[SourceTitle "playchess.com"]
[Source "ChessBase"]
[SourceQuality "1"]
[TimeControl "40/5400+30:1800+30"]

1. Nf3 {[%emt 0:00:00]} d5 {[%emt 0:00:00]} 2. g3 {[%emt 0:00:00]} Nd7 {[%emt 0:00:00]} 3. d4 {[%emt 0:00:00]} b5 {[%emt 0:00:04]} 4. Bg2 {[%emt 0:00:13]} Ngf6 {[%emt 0:00:10]} 5. Nbd2 {[%emt 0:00:27]} e6 {[%emt 0:00:36]} 6. O-O {[%emt 0:00:18]} Be7 {[%emt 0:00:40]} 7. Re1 {[%emt 0:00:58]} Bb7 {[%emt 0:00:30]} 8. b3 {[%emt 0:01:33]} Nb6 {[%emt 0:02:04]} 9. Ne5 {[%emt 0:02:32]} b4 {[%emt 0:02:44]} 10. Ndf3 {[%emt 0:01:19]} Ne4 {[%emt 0:02:58]} 11. Bf4 {[%emt 0:04:52]} O-O {[%emt 0:01:33]} 12. Nd2 {[%emt 0:02:27]} Nc3 {[%emt 0:01:19]} 13. Qc1 {[%emt 0:00:31]} c5 {[%emt 0:03:56]} 14. dxc5 {[%emt 0:01:06]} Bxc5 {[%emt 0:00:34]} 15. Nd3 {[%emt 0:03:24]} Be7 {[%emt 0:04:32]} 16. Qb2 {[%emt 0:01:26]} Rc8 {[%emt 0:04:14]} 17. Nb1 {[%emt 0:04:12]} Ne4 {[%emt 0:03:27]} 18. Qd4 {[%emt 0:02:21]} g5 {[%emt 0:03:59]} 19. Bc1 {[%emt 0:08:43]} Bf6 {[%emt 0:03:46]} 20. Ne5 {[%emt 0:01:40]} Nd7 {[%emt 0:03:28]} 21. f4 {[%emt 0:01:35]} gxf4 {[%emt 0:01:45]} 22. Bxf4 {[%emt 0:00:10]} Qc7 {[%emt 0:01:17]} 23. Bxe4 {[%emt 0:01:08]} Nxe5 {[%emt 0:01:36]} 24. Bxh7+ {[%emt 0:02:22]} Kxh7 {[%emt 0:00:46]} 25. Qxa7 {[%emt 0:03:40]} d4 {[%emt 0:06:19]} 26. Bxe5 {[%emt 0:05:12]} Bxe5 {[%emt 0:00:32]} 27. Kf2 {[%emt 0:02:18]} Ra8 {[%emt 0:00:58]} 28. Qxa8 {[%emt 0:02:00]} Bxa8 {[%emt 0:00:16]} 29. e4 {[%emt 0:02:10]} dxe3+ {[%emt 0:00:56]} 30. Kxe3 {[%emt 0:00:32]} Qc5+ {[%emt 0:00:32]} 31. Kd2 {[%emt 0:00:56]} Qf2+ {[%emt 0:00:37]} 32. Re2 {[%emt 0:00:48]} Rd8+ {[%emt 0:00:17]} 33. Kc1 {[%emt 0:00:41]} Qf1+ {[%emt 0:00:15]} 34. Re1 {[%emt 0:00:20]} Qxe1# {[%emt 0:00:07] Kd1 Qe2+} 0-1

[Event "WCCC G10 2019"]
[Site "Weifang"]
[Date "2019.08.21"]
[Round "1.9"]
[White "Khamdamova, Afruza"]
[Black "Krasilnikova, Marija"]
[Result "1-0"]
[ECO "B40"]
[WhiteElo "1607"]
[BlackElo "1014"]
[Annotator "NA"]
[PlyCount "39"]
[EventDate "2019.08.21"]
[EventType "swiss"]
[EventCountry "CHN"]
[SourceTitle "playchess.com"]
[Source "ChessBase"]
[SourceQuality "1"]
[TimeControl "40/5400+30:1800+30"]

1. e4 {[%emt 0:00:00]} c5 {[%emt 0:00:00]} 2. Nf3 {[%emt 0:00:00]} e6 {[%emt 0:00:00]} 3. d4 {[%emt 0:00:00]} cxd4 {[%emt 0:00:05]} 4. Nxd4 {[%emt 0:00:00]} Nf6 {[%emt 0:00:27]} 5. Nc3 {[%emt 0:00:05]} Bb4 {[%emt 0:00:50]} 6. e5 {[%emt 0:13:22]} Nd5 {[%emt 0:05:29]} 7. Bd2 {[%emt 0:00:25]} Nxc3 {[%emt 0:02:25]} 8. bxc3 {[%emt 0:00:10]} Bc5 {[%emt 0:04:49]} 9. Qg4 {[%emt 0:05:39]} g6 {[%emt 0:15:33]} 10. Bd3 {[%emt 0:05:44]} Nc6 {[%emt 0:10:44]} 11. Nxc6 {[%emt 0:12:27]} bxc6 {[%emt 0:03:47]} 12. O-O {[%emt 0:00:37]} a5 {[%emt 0:00:51]} 13. Bh6 {[%emt 0:16:22]} Ba6 {[%emt 0:03:06]} 14. Bxa6 {[%emt 0:03:25]} Rxa6 {[%emt 0:00:07]} 15. Qc4 {[%emt 0:00:05]} Qb6 {[%emt 0:01:02]} 16. Rab1 {[%emt 0:00:27]} Qa7 {[%emt 0:00:12]} 17. Bg7 {[%emt 0:02:39]} Rg8 {[%emt 0:01:05]} 18. Qxa6 {[%emt 0:00:14]} Qxa6 {[%emt 0:00:23]} 19. Rb8+ {[%emt 0:00:05]} Ke7 {[%emt 0:00:14]} 20. Bf6# {[%emt 0:00:05]} 1-0